[Event "Early-Titled-Tuesday-Blitz-February-06-2024"]
[Site "Chess.com"]
[Date "2024.02.06"]
[Round "1"]
[White "GMBenjaminBok"]
[Black "kecalk"]
[Result "1-0"]
[WhiteElo "2955"]
[BlackElo "2503"]
[TimeControl "180+1"]
[EndTime "8:08:31 PST"]
[Termination "GMBenjaminBok won on time"]

1. d4 {[%clk 0:03:00.9]} 1... Nf6 {[%clk 0:02:56.9]} 2. c4 {[%clk 0:03:00.7]}
2... e6 {[%clk 0:02:57]} 3. Nc3 {[%clk 0:02:59.9]} 3... Bb4 {[%clk 0:02:56.3]}
4. Qc2 {[%clk 0:02:59.9]} 4... c5 {[%clk 0:02:52.5]} 5. dxc5 {[%clk 0:02:59.6]}
5... O-O {[%clk 0:02:52.7]} 6. a3 {[%clk 0:02:59.2]} 6... Bxc5 {[%clk
0:02:53.2]} 7. Nf3 {[%clk 0:02:59.4]} 7... d5 {[%clk 0:02:53.3]} 8. Bg5 {[%clk
0:02:57.9]} 8... Be7 {[%clk 0:02:51.8]} 9. e3 {[%clk 0:02:57.7]} 9... dxc4
{[%clk 0:02:34.6]} 10. Bxc4 {[%clk 0:02:57.2]} 10... a6 {[%clk 0:02:35.3]} 11.
Rd1 {[%clk 0:02:47.8]} 11... Nbd7 {[%clk 0:02:26]} 12. O-O {[%clk 0:02:39.8]}
12... h6 {[%clk 0:02:13.3]} 13. Bf4 {[%clk 0:02:13.6]} 13... b5 {[%clk
0:02:09.3]} 14. Bd3 {[%clk 0:02:13.3]} 14... Qb6 {[%clk 0:01:54]} 15. Ne4 {[%clk
0:02:02.9]} 15... Bb7 {[%clk 0:01:52]} 16. Bc7 {[%clk 0:01:59.3]} 16... Qa7
{[%clk 0:01:47.6]} 17. Nxf6+ {[%clk 0:01:51.6]} 17... Nxf6 {[%clk 0:01:47.5]}
18. Bg3 {[%clk 0:01:49.6]} 18... Rac8 {[%clk 0:01:39.1]} 19. Qe2 {[%clk
0:01:49.3]} 19... Be4 {[%clk 0:01:32.6]} 20. Ne5 {[%clk 0:01:32.8]} 20... Bxd3
{[%clk 0:01:30]} 21. Rxd3 {[%clk 0:01:33.7]} 21... Qb7 {[%clk 0:01:20.5]} 22.
Rfd1 {[%clk 0:01:30.8]} 22... Rfd8 {[%clk 0:01:13.8]} 23. h3 {[%clk 0:01:28.6]}
23... Rxd3 {[%clk 0:01:11.6]} 24. Rxd3 {[%clk 0:01:29.5]} 24... Rd8 {[%clk
0:01:08.8]} 25. Rxd8+ {[%clk 0:01:23.3]} 25... Bxd8 {[%clk 0:01:09.7]} 26. Qd3
{[%clk 0:01:22.1]} 26... Bb6 {[%clk 0:00:55.4]} 27. Kh2 {[%clk 0:01:16.4]} 27...
Qd5 {[%clk 0:00:30.9]} 28. Qc2 {[%clk 0:01:13.5]} 28... Qc5 {[%clk 0:00:30.5]}
29. Qd3 {[%clk 0:00:42.4]} 29... Qd5 {[%clk 0:00:30.5]} 30. Qxd5 {[%clk
0:00:42.6]} 30... Nxd5 {[%clk 0:00:31.3]} 31. Nd7 {[%clk 0:00:43.2]} 31... Ba7
{[%clk 0:00:30.6]} 32. Bb8 {[%clk 0:00:39.4]} 32... Bxb8+ {[%clk 0:00:29.8]} 33.
Nxb8 {[%clk 0:00:40.3]} 33... Nc7 {[%clk 0:00:30.5]} 34. Kg3 {[%clk 0:00:38]}
34... Kf8 {[%clk 0:00:26.3]} 35. Nc6 {[%clk 0:00:31.3]} 35... Ke8 {[%clk
0:00:23.4]} 36. Kf4 {[%clk 0:00:31.4]} 36... f6 {[%clk 0:00:20.8]} 37. Ke4
{[%clk 0:00:31.2]} 37... Kd7 {[%clk 0:00:20.8]} 38. Na5 {[%clk 0:00:30.4]} 38...
Kd6 {[%clk 0:00:17.6]} 39. f4 {[%clk 0:00:30.5]} 39... g5 {[%clk 0:00:16.9]} 40.
fxg5 {[%clk 0:00:28.1]} 40... f5+ {[%clk 0:00:10.3]} 41. Kd3 {[%clk 0:00:22.2]}
41... hxg5 {[%clk 0:00:10.4]} 42. g3 {[%clk 0:00:22.9]} 42... Nd5 {[%clk
0:00:05.1]} 43. Nb7+ {[%clk 0:00:19.2]} 43... Kc6 {[%clk 0:00:02.8]} 44. Nd8+
{[%clk 0:00:19.5]} 44... Kd7 {[%clk 0:00:01.9]} 45. Nf7 {[%clk 0:00:20.1]} 45...
g4 {[%clk 0:00:02.3]} 46. hxg4 {[%clk 0:00:20.9]} 46... fxg4 {[%clk 0:00:03.2]}
47. Ne5+ {[%clk 0:00:21.4]} 47... Kd6 {[%clk 0:00:04.1]} 48. Nxg4 {[%clk
0:00:21.9]} 48... Nb6 {[%clk 0:00:02.7]} 49. b3 {[%clk 0:00:21.8]} 49... Nd7
{[%clk 0:00:02.3]} 50. Nf2 {[%clk 0:00:16.1]} 50... Nc5+ {[%clk 0:00:02.5]} 51.
Kc3 {[%clk 0:00:16.7]} 51... Nd7 {[%clk 0:00:01.6]} 52. Kd4 {[%clk 0:00:15.6]}
52... e5+ {[%clk 0:00:01.7]} 53. Kc3 {[%clk 0:00:15.1]} 53... Kd5 {[%clk
0:00:01.8]} 54. e4+ {[%clk 0:00:12.5]} 54... Kd6 {[%clk 0:00:01.6]} 55. Nd3
{[%clk 0:00:11.5]} 55... Nf6 {[%clk 0:00:01.7]} 56. Nf2 {[%clk 0:00:09.6]} 56...
Nd7 {[%clk 0:00:01.5]} 57. Kb4 {[%clk 0:00:09.8]} 57... Kc6 {[%clk 0:00:01.6]}
58. g4 {[%clk 0:00:09.9]} 58... Kb6 {[%clk 0:00:01.6]} 59. g5 {[%clk 0:00:10.4]}
59... a5+ {[%clk 0:00:02.2]} 60. Kc3 {[%clk 0:00:11.1]} 60... Nf8 {[%clk
0:00:02.7]} 61. Nd3 {[%clk 0:00:08.3]} 61... Ng6 {[%clk 0:00:02.5]} 62. Kd2
{[%clk 0:00:08.5]} 62... Kc6 {[%clk 0:00:02.7]} 63. Ke3 {[%clk 0:00:09]} 63...
Kd6 {[%clk 0:00:01.8]} 64. Kf3 {[%clk 0:00:09.6]} 1-0

[Event "Early-Titled-Tuesday-Blitz-February-06-2024"]
[Site "Chess.com"]
[Date "2024.02.06"]
[Round "1"]
[White "threemind"]
[Black "RantomOpening"]
[Result "0-1"]
[WhiteElo "2142"]
[BlackElo "2563"]
[TimeControl "180+1"]
[EndTime "8:08:31 PST"]
[Termination "RantomOpening won by resignation"]

1. d4 {[%clk 0:03:00.9]} 1... d5 {[%clk 0:01:28.5]} 2. Nf3 {[%clk 0:02:56.5]}
2... e6 {[%clk 0:01:25.5]} 3. Bg5 {[%clk 0:02:56.6]} 3... Nf6 {[%clk 0:01:08.5]}
4. Nbd2 {[%clk 0:02:55.9]} 4... Be7 {[%clk 0:01:08.1]} 5. e3 {[%clk 0:02:56]}
5... O-O {[%clk 0:01:06.8]} 6. Bd3 {[%clk 0:02:56.3]} 6... b6 {[%clk 0:01:06.4]}
7. Qe2 {[%clk 0:02:41.9]} 7... Bb7 {[%clk 0:01:05.8]} 8. c3 {[%clk 0:02:42.2]}
8... Nbd7 {[%clk 0:00:55.5]} 9. O-O {[%clk 0:02:42.1]} 9... Ne4 {[%clk
0:00:55.4]} 10. Bxe7 {[%clk 0:02:36.5]} 10... Qxe7 {[%clk 0:00:55]} 11. Ne5
{[%clk 0:02:36.1]} 11... Nxe5 {[%clk 0:00:54.5]} 12. dxe5 {[%clk 0:02:37]} 12...
Nc5 {[%clk 0:00:46.9]} 13. Bc2 {[%clk 0:02:36.1]} 13... Ba6 {[%clk 0:00:46.8]}
14. c4 {[%clk 0:02:26.7]} 14... Nd7 {[%clk 0:00:36.5]} 15. b3 {[%clk 0:02:19.7]}
15... Nxe5 {[%clk 0:00:35.2]} 16. Bxh7+ {[%clk 0:02:20]} 16... Kxh7 {[%clk
0:00:34.2]} 17. Qh5+ {[%clk 0:02:20.6]} 17... Kg8 {[%clk 0:00:34.8]} 18. Qxe5
{[%clk 0:02:21.3]} 18... Qd6 {[%clk 0:00:34.5]} 19. Qxd6 {[%clk 0:02:16.6]}
19... cxd6 {[%clk 0:00:35.4]} 20. Rfc1 {[%clk 0:02:16.4]} 20... dxc4 {[%clk
0:00:34.7]} 21. Nxc4 {[%clk 0:02:15.7]} 21... d5 {[%clk 0:00:32.2]} 22. Ne5
{[%clk 0:02:14.8]} 22... Rac8 {[%clk 0:00:31.2]} 23. f3 {[%clk 0:02:08.3]} 23...
Rfd8 {[%clk 0:00:30.6]} 24. f4 {[%clk 0:01:59.7]} 24... f6 {[%clk 0:00:30.5]}
25. Nf3 {[%clk 0:01:58.6]} 25... Kf7 {[%clk 0:00:31.2]} 26. Kf2 {[%clk
0:01:58.7]} 26... Ke7 {[%clk 0:00:31.5]} 27. Ke1 {[%clk 0:01:57.8]} 27... Kd6
{[%clk 0:00:32.1]} 28. Kd2 {[%clk 0:01:58.3]} 28... e5 {[%clk 0:00:32.6]} 29. g3
{[%clk 0:01:55.8]} 29... Bb7 {[%clk 0:00:29.5]} 30. Nh4 {[%clk 0:01:51.7]} 30...
Ke6 {[%clk 0:00:28.8]} 31. f5+ {[%clk 0:01:48.6]} 31... Kd6 {[%clk 0:00:28.1]}
32. Rxc8 {[%clk 0:01:42.2]} 32... Rxc8 {[%clk 0:00:28]} 33. a4 {[%clk
0:01:42.3]} 33... e4 {[%clk 0:00:27.5]} 34. Ng2 {[%clk 0:01:38.5]} 34... Ke5
{[%clk 0:00:26.8]} 35. g4 {[%clk 0:01:38.8]} 35... Rh8 {[%clk 0:00:25.2]} 36. h4
{[%clk 0:01:39.3]} 36... d4 {[%clk 0:00:22.1]} 37. h5 {[%clk 0:01:38.6]} 37...
Rc8 {[%clk 0:00:20.4]} 38. exd4+ {[%clk 0:01:35.6]} 38... Kxd4 {[%clk
0:00:19.9]} 39. Ne3 {[%clk 0:01:36.1]} 39... Ba6 {[%clk 0:00:15.9]} 40. Nc2+
{[%clk 0:01:31.2]} 40... Ke5 {[%clk 0:00:15.3]} 41. Nb4 {[%clk 0:01:27.5]} 41...
Bb7 {[%clk 0:00:15.5]} 42. Nc2 {[%clk 0:01:16.4]} 42... Rd8+ {[%clk 0:00:14.9]}
43. Ke2 {[%clk 0:01:15.4]} 43... Ba6+ {[%clk 0:00:15.3]} 44. Ke1 {[%clk
0:01:13.3]} 44... Rd3 {[%clk 0:00:12.7]} 45. Nb4 {[%clk 0:01:12.8]} 45... Rh3
{[%clk 0:00:12.4]} 46. Rc1 {[%clk 0:01:06.4]} 46... Rh1+ {[%clk 0:00:11.7]} 47.
Kd2 {[%clk 0:01:07]} 47... Rxc1 {[%clk 0:00:12]} 48. Kxc1 {[%clk 0:01:07.8]}
48... Bb7 {[%clk 0:00:12.6]} 49. Nc2 {[%clk 0:01:01.4]} 49... Kf4 {[%clk
0:00:12.9]} 50. Kd2 {[%clk 0:01:01.9]} 50... Kxg4 {[%clk 0:00:13.2]} 51. Ke3
{[%clk 0:01:02.6]} 51... Kxf5 {[%clk 0:00:13.7]} 52. Nd4+ {[%clk 0:01:02.3]}
52... Kg5 {[%clk 0:00:14.3]} 53. Ne6+ {[%clk 0:01:02.2]} 53... Kh6 {[%clk
0:00:15]} 54. Nf4 {[%clk 0:01:01.5]} 54... f5 {[%clk 0:00:13.6]} 55. b4 {[%clk
0:01:00.3]} 55... Kg5 {[%clk 0:00:13.5]} 56. Ne6+ {[%clk 0:00:55.5]} 56... Kf6
{[%clk 0:00:13.8]} 57. Nf4 {[%clk 0:00:54.4]} 57... a5 {[%clk 0:00:14.3]} 58. b5
{[%clk 0:00:51.9]} 58... Ke5 {[%clk 0:00:14]} 59. Ng6+ {[%clk 0:00:51.4]} 59...
Kf6 {[%clk 0:00:14.2]} 60. Nf4 {[%clk 0:00:51.7]} 60... Kg5 {[%clk 0:00:14.9]}
61. Ne6+ {[%clk 0:00:50.9]} 61... Kxh5 {[%clk 0:00:15.6]} 62. Nxg7+ {[%clk
0:00:51.6]} 62... Kg4 {[%clk 0:00:16.2]} 63. Ne6 {[%clk 0:00:51.2]} 63... Kg3
{[%clk 0:00:15.5]} 64. Nf4 {[%clk 0:00:47.7]} 64... Bc8 {[%clk 0:00:14.5]} 65.
Nd5 {[%clk 0:00:45.9]} 65... Be6 {[%clk 0:00:12.6]} 66. Nxb6 {[%clk 0:00:45.4]}
66... Bb3 {[%clk 0:00:12.7]} 67. Nc8 {[%clk 0:00:41.6]} 67... Bxa4 {[%clk
0:00:12.5]} 68. b6 {[%clk 0:00:42.1]} 68... Bc6 {[%clk 0:00:12.7]} 69. Ne7
{[%clk 0:00:40.6]} 69... f4+ {[%clk 0:00:13.6]} 70. Ke2 {[%clk 0:00:39.9]} 70...
Bb7 {[%clk 0:00:12]} 71. Nf5+ {[%clk 0:00:39.5]} 71... Kg2 {[%clk 0:00:11.9]}
72. Nd6 {[%clk 0:00:39.1]} 72... f3+ {[%clk 0:00:11.3]} 73. Ke3 {[%clk
0:00:36.8]} 73... f2 {[%clk 0:00:11.7]} 74. Nxb7 {[%clk 0:00:37.5]} 74... f1=Q
{[%clk 0:00:12]} 75. Nc5 {[%clk 0:00:38.3]} 75... Qf2+ {[%clk 0:00:12.4]} 76.
Kxe4 {[%clk 0:00:38.1]} 76... Qxc5 {[%clk 0:00:13.3]} 77. b7 {[%clk 0:00:38.6]}
77... Qc6+ {[%clk 0:00:13.9]} 0-1

[Event "Early-Titled-Tuesday-Blitz-February-06-2024"]
[Site "Chess.com"]
[Date "2024.02.06"]
[Round "1"]
[White "wadsy27"]
[Black "Louis-Paulsen-Fan"]
[Result "1-0"]
[WhiteElo "2617"]
[BlackElo "2284"]
[TimeControl "180+1"]
[EndTime "8:08:34 PST"]
[Termination "wadsy27 won on time"]

1. e4 {[%clk 0:02:59]} 1... Nf6 {[%clk 0:02:56.6]} 2. Nc3 {[%clk 0:02:57.4]}
2... e5 {[%clk 0:02:56.2]} 3. Nf3 {[%clk 0:02:57.5]} 3... Nc6 {[%clk 0:02:56.1]}
4. d4 {[%clk 0:02:57.4]} 4... Bb4 {[%clk 0:02:55.4]} 5. dxe5 {[%clk 0:02:34.3]}
5... Nxe4 {[%clk 0:02:53.1]} 6. Bd2 {[%clk 0:02:27.9]} 6... Bxc3 {[%clk
0:02:53.2]} 7. Bxc3 {[%clk 0:02:10.8]} 7... Nxc3 {[%clk 0:02:52.4]} 8. bxc3
{[%clk 0:02:11.1]} 8... Qe7 {[%clk 0:02:52.5]} 9. Bd3 {[%clk 0:02:09.2]} 9...
Nxe5 {[%clk 0:02:49.1]} 10. O-O {[%clk 0:02:07.8]} 10... Nxd3 {[%clk 0:02:39.6]}
11. Qxd3 {[%clk 0:02:04.5]} 11... O-O {[%clk 0:02:38.2]} 12. Rfe1 {[%clk
0:02:04]} 12... Qf6 {[%clk 0:02:36.8]} 13. Re3 {[%clk 0:01:54.4]} 13... d6
{[%clk 0:02:34.8]} 14. Rae1 {[%clk 0:01:54.9]} 14... Bf5 {[%clk 0:02:30.8]} 15.
Qc4 {[%clk 0:01:52.5]} 15... c6 {[%clk 0:02:23.7]} 16. Nd4 {[%clk 0:01:52.4]}
16... Bg6 {[%clk 0:02:19.2]} 17. Re7 {[%clk 0:01:36.3]} 17... Rab8 {[%clk
0:02:02.1]} 18. h3 {[%clk 0:01:24.4]} 18... h6 {[%clk 0:02:01.7]} 19. R1e3
{[%clk 0:01:19.1]} 19... c5 {[%clk 0:01:52.9]} 20. Nb5 {[%clk 0:01:07.9]} 20...
a6 {[%clk 0:01:45]} 21. Nc7 {[%clk 0:01:03.7]} 21... b5 {[%clk 0:01:22.7]} 22.
Qe2 {[%clk 0:00:59.3]} 22... c4 {[%clk 0:01:11.3]} 23. Ne8 {[%clk 0:00:51.1]}
23... Qf5 {[%clk 0:01:01.6]} 24. Rg3 {[%clk 0:00:44.1]} 24... Kh8 {[%clk
0:00:37.6]} 25. Nxd6 {[%clk 0:00:39.7]} 25... Qxc2 {[%clk 0:00:36.9]} 26. Qxc2
{[%clk 0:00:36.9]} 26... Bxc2 {[%clk 0:00:37.8]} 27. Nxf7+ {[%clk 0:00:36.8]}
27... Kh7 {[%clk 0:00:35.6]} 28. Ne5 {[%clk 0:00:26]} 28... Rg8 {[%clk
0:00:30.2]} 29. h4 {[%clk 0:00:26]} 29... a5 {[%clk 0:00:28.6]} 30. a3 {[%clk
0:00:25.7]} 30... b4 {[%clk 0:00:27.9]} 31. axb4 {[%clk 0:00:25.9]} 31... axb4
{[%clk 0:00:28.5]} 32. cxb4 {[%clk 0:00:26.8]} 32... Rxb4 {[%clk 0:00:26.6]} 33.
Rc7 {[%clk 0:00:26.2]} 33... Bb3 {[%clk 0:00:24.3]} 34. h5 {[%clk 0:00:22.8]}
34... Rbb8 {[%clk 0:00:24.1]} 35. Nd7 {[%clk 0:00:18.5]} 35... Rbc8 {[%clk
0:00:20.9]} 36. Nf6+ {[%clk 0:00:17.5]} 36... Kh8 {[%clk 0:00:21.2]} 37. Rxc8
{[%clk 0:00:08.7]} 37... Rxc8 {[%clk 0:00:22.1]} 38. Ne4 {[%clk 0:00:08.7]}
38... Bc2 {[%clk 0:00:19.7]} 39. Nc3 {[%clk 0:00:08.7]} 39... Bd3 {[%clk
0:00:19.9]} 40. Rg4 {[%clk 0:00:06.3]} 40... Rb8 {[%clk 0:00:19.6]} 41. Rd4
{[%clk 0:00:06.6]} 41... Rb3 {[%clk 0:00:19.1]} 42. Rd8+ {[%clk 0:00:06.7]}
42... Kh7 {[%clk 0:00:19]} 43. Nd5 {[%clk 0:00:07.3]} 43... c3 {[%clk
0:00:17.7]} 44. Rc8 {[%clk 0:00:07.3]} 44... c2 {[%clk 0:00:17]} 45. Kh2 {[%clk
0:00:07.4]} 45... Rb1 {[%clk 0:00:16.4]} 46. Nf4 {[%clk 0:00:06.7]} 46... c1=Q
{[%clk 0:00:15.9]} 47. Rxc1 {[%clk 0:00:06.1]} 47... Rxc1 {[%clk 0:00:15.6]} 48.
Nxd3 {[%clk 0:00:07]} 48... Rc2 {[%clk 0:00:14.9]} 49. Kg3 {[%clk 0:00:06.7]}
49... Kg8 {[%clk 0:00:14.8]} 50. Nf4 {[%clk 0:00:06.9]} 50... Rc3+ {[%clk
0:00:13.2]} 51. f3 {[%clk 0:00:07.1]} 51... Ra3 {[%clk 0:00:13.4]} 52. Kg4
{[%clk 0:00:07.4]} 52... Kf7 {[%clk 0:00:13.8]} 53. Ng6 {[%clk 0:00:07.7]} 53...
Kf6 {[%clk 0:00:13.4]} 54. Kf4 {[%clk 0:00:07.8]} 54... Ra4+ {[%clk 0:00:13.2]}
55. Ke3 {[%clk 0:00:08]} 55... Kg5 {[%clk 0:00:12.3]} 56. g4 {[%clk 0:00:08.2]}
56... Ra3+ {[%clk 0:00:12.3]} 57. Ke4 {[%clk 0:00:08]} 57... Ra4+ {[%clk
0:00:10.8]} 58. Ke3 {[%clk 0:00:08.1]} 58... Ra6 {[%clk 0:00:10]} 59. Ne5 {[%clk
0:00:07.2]} 59... Re6 {[%clk 0:00:07.3]} 60. f4+ {[%clk 0:00:06.8]} 60... Kh4
{[%clk 0:00:05.3]} 61. Kf3 {[%clk 0:00:06.8]} 61... Ra6 {[%clk 0:00:03.7]} 62.
Ke4 {[%clk 0:00:06.7]} 62... Ra4+ {[%clk 0:00:03.4]} 63. Kf5 {[%clk 0:00:07.1]}
63... Ra5 {[%clk 0:00:03.7]} 64. Kg6 {[%clk 0:00:07.2]} 64... Rxe5 {[%clk
0:00:02.7]} 65. fxe5 {[%clk 0:00:07.3]} 65... Kxg4 {[%clk 0:00:03.3]} 66. e6
{[%clk 0:00:07.8]} 1-0

[Event "Early-Titled-Tuesday-Blitz-February-06-2024"]
[Site "Chess.com"]
[Date "2024.02.06"]
[Round "1"]
[White "SarochaChuemsakul"]
[Black "LikeWater"]
[Result "0-1"]
[WhiteElo "2455"]
[BlackElo "2821"]
[TimeControl "180+1"]
[EndTime "8:08:41 PST"]
[Termination "LikeWater won by resignation"]

1. d4 {[%clk 0:03:00.9]} 1... d5 {[%clk 0:02:56]} 2. c4 {[%clk 0:03:00.7]} 2...
e6 {[%clk 0:02:56.1]} 3. cxd5 {[%clk 0:03:00.7]} 3... exd5 {[%clk 0:02:55.5]} 4.
Nc3 {[%clk 0:03:01.6]} 4... c6 {[%clk 0:02:54]} 5. Bf4 {[%clk 0:03:01.2]} 5...
Bf5 {[%clk 0:02:52.7]} 6. e3 {[%clk 0:03:01.1]} 6... Bd6 {[%clk 0:02:49]} 7.
Bxd6 {[%clk 0:03:00.8]} 7... Qxd6 {[%clk 0:02:49.5]} 8. Bd3 {[%clk 0:02:59.3]}
8... Ne7 {[%clk 0:02:37.1]} 9. Nf3 {[%clk 0:02:57.8]} 9... Nd7 {[%clk
0:02:36.3]} 10. O-O {[%clk 0:02:57.8]} 10... O-O {[%clk 0:02:35.9]} 11. Bxf5
{[%clk 0:02:45.5]} 11... Nxf5 {[%clk 0:02:35.5]} 12. Qd3 {[%clk 0:02:46.4]}
12... g6 {[%clk 0:02:34]} 13. a3 {[%clk 0:02:44.5]} 13... a5 {[%clk 0:02:30.8]}
14. Rac1 {[%clk 0:02:44.3]} 14... b5 {[%clk 0:02:30.1]} 15. Ne2 {[%clk
0:02:39.9]} 15... a4 {[%clk 0:02:22.6]} 16. Nf4 {[%clk 0:02:28.1]} 16... Nb6
{[%clk 0:02:21.1]} 17. Qc3 {[%clk 0:02:11.8]} 17... Nc4 {[%clk 0:02:17.7]} 18.
Nd3 {[%clk 0:02:12.1]} 18... f6 {[%clk 0:01:57.2]} 19. Rc2 {[%clk 0:02:11.4]}
19... Qe7 {[%clk 0:01:51.5]} 20. Re1 {[%clk 0:02:09.1]} 20... Nfd6 {[%clk
0:01:50.7]} 21. Qb4 {[%clk 0:02:03]} 21... Rac8 {[%clk 0:01:41.6]} 22. h3 {[%clk
0:01:50.1]} 22... Kg7 {[%clk 0:01:39.2]} 23. Ree2 {[%clk 0:01:28.1]} 23... Rfe8
{[%clk 0:01:38.8]} 24. Nf4 {[%clk 0:01:14.8]} 24... Qa7 {[%clk 0:01:28.6]} 25.
Nd3 {[%clk 0:01:04.8]} 25... Ne4 {[%clk 0:01:24.7]} 26. Nc5 {[%clk 0:01:02]}
26... Nxc5 {[%clk 0:01:24.2]} 27. Qxc5 {[%clk 0:01:01.2]} 27... Qxc5 {[%clk
0:01:23.7]} 28. dxc5 {[%clk 0:01:02.1]} 28... f5 {[%clk 0:01:22.5]} 29. Nd4
{[%clk 0:01:02.5]} 29... Re4 {[%clk 0:01:18.6]} 30. g3 {[%clk 0:00:51.4]} 30...
Kf6 {[%clk 0:01:13.4]} 31. Kg2 {[%clk 0:00:51.1]} 31... Ke7 {[%clk 0:01:13.2]}
32. Rc3 {[%clk 0:00:39.5]} 32... Kd7 {[%clk 0:01:13.2]} 33. f3 {[%clk
0:00:35.3]} 33... Re5 {[%clk 0:01:12.5]} 34. Kf2 {[%clk 0:00:35.1]} 34... Rce8
{[%clk 0:01:12.2]} 35. Rd3 {[%clk 0:00:29.7]} 35... Kc7 {[%clk 0:01:08.4]} 36.
h4 {[%clk 0:00:29.4]} 36... h6 {[%clk 0:01:07.4]} 37. b3 {[%clk 0:00:20.6]}
37... axb3 {[%clk 0:01:05.4]} 38. Rxb3 {[%clk 0:00:21.5]} 38... Ra8 {[%clk
0:01:04]} 39. Ra2 {[%clk 0:00:20.2]} 39... Ra4 {[%clk 0:01:02.8]} 40. Ke2 {[%clk
0:00:14.2]} 40... Re8 {[%clk 0:00:57]} 41. Kf2 {[%clk 0:00:13.7]} 41... h5
{[%clk 0:00:51.2]} 42. Ke2 {[%clk 0:00:12.6]} 42... Rea8 {[%clk 0:00:50.2]} 43.
Nc2 {[%clk 0:00:12.5]} 43... Kd7 {[%clk 0:00:47]} 44. Kd3 {[%clk 0:00:11.5]}
44... Rg8 {[%clk 0:00:44.6]} 45. Ra1 {[%clk 0:00:10.3]} 45... Re8 {[%clk
0:00:41.5]} 46. Rg1 {[%clk 0:00:09.3]} 46... Ne5+ {[%clk 0:00:38.1]} 47. Ke2
{[%clk 0:00:09]} 47... Rc4 {[%clk 0:00:38.1]} 48. Nd4 {[%clk 0:00:07.5]} 48...
Ra8 {[%clk 0:00:36.3]} 49. Rgb1 {[%clk 0:00:03.6]} 49... Rxc5 {[%clk 0:00:36]}
50. R1b2 {[%clk 0:00:03.8]} 50... Nc4 {[%clk 0:00:35.6]} 51. Rc2 {[%clk
0:00:03.7]} 51... Kd6 {[%clk 0:00:35.7]} 52. Rbc3 {[%clk 0:00:03.8]} 52... Rxa3
{[%clk 0:00:35.3]} 53. Rxa3 {[%clk 0:00:03.8]} 53... Nxa3 {[%clk 0:00:36.2]} 54.
Ra2 {[%clk 0:00:04.7]} 54... b4 {[%clk 0:00:35.9]} 55. Rb2 {[%clk 0:00:05]}
55... Rc4 {[%clk 0:00:35.4]} 56. Kd3 {[%clk 0:00:05.3]} 56... c5 {[%clk
0:00:35.2]} 57. Ne2 {[%clk 0:00:04.8]} 57... Nb5 {[%clk 0:00:33.2]} 58. Ra2
{[%clk 0:00:05.4]} 58... Na3 {[%clk 0:00:32.8]} 59. Rb2 {[%clk 0:00:05.7]} 59...
Kc6 {[%clk 0:00:33.1]} 60. Nf4 {[%clk 0:00:05.2]} 60... Rc3+ {[%clk 0:00:32.7]}
61. Ke2 {[%clk 0:00:05.8]} 61... Nc4 {[%clk 0:00:32.4]} 62. Ra2 {[%clk
0:00:05.8]} 62... Rxe3+ {[%clk 0:00:32.6]} 63. Kf2 {[%clk 0:00:06.7]} 63... Ra3
{[%clk 0:00:33.3]} 64. Re2 {[%clk 0:00:06]} 64... b3 {[%clk 0:00:33.3]} 65. Re6+
{[%clk 0:00:06.6]} 65... Nd6 {[%clk 0:00:33.5]} 66. Rxg6 {[%clk 0:00:06]} 66...
b2 {[%clk 0:00:33.8]} 0-1